bitfinex/quotes_BTCUSD_20250526
["timestamp","ask_amount","ask_price","bid_price","bid_amount"]
[1748239243679,0.08954556,109470.0,109450.0,0.0304967]
[1748239243876,0.0318,109460.0,109450.0,0.0004967]
[1748239244085,0.12134556,109460.0,109450.0,0.0004967]
[1748239244290,0.11534556,109460.0,109450.0,0.0004967]
[1748239244698,0.10484556,109460.0,109450.0,0.0004967]
[1748239244915,0.10484556,109460.0,109450.0,0.0014967]
[1748239246440,0.10484556,109460.0,109450.0,0.0024967]
[1748239246705,0.65460338,109460.0,109450.0,0.0024967]
[1748239246900,0.65460338,109460.0,109450.0,0.0034967]
[1748239247138,0.10484556,109460.0,109450.0,0.0014967]
[1748239247365,0.12054556,109460.0,109450.0,0.0004967]
[1748239251969,0.11454556,109460.0,109450.0,0.0004967]
[1748239252672,0.11654556,109460.0,109450.0,0.0004967]
[1748239253825,0.11854556,109460.0,109450.0,0.0004967]
[1748239255486,0.10284556,109460.0,109450.0,0.0004967]
[1748239255728,0.09354556,109460.0,109450.0,0.0004967]
[1748239257552,0.09354556,109460.0,109450.0,0.0318967]
[1748239259823,0.08754556,109460.0,109450.0,0.0318967]
[1748239267492,0.004,109460.0,109450.0,0.0318967]
[1748239270049,0.004,109460.0,109450.0,0.0168967]
[1748239270256,0.004,109460.0,109450.0,0.0004967]
[1748239275092,0.029,109470.0,109450.0,0.0004967]
[1748239275458,0.11854556,109470.0,109450.0,0.0004967]
[1748239276377,0.12054556,109470.0,109450.0,0.0004967]
[1748239277476,0.12154556,109470.0,109450.0,0.0004967]
[1748239277709,0.12154556,109470.0,109450.0,0.0323967]
[1748239279317,0.23681892,109470.0,109450.0,0.0323967]
[1748239279537,0.12124556,109460.0,109450.0,0.0004967]
[1748239279754,0.67100338,109460.0,109450.0,0.0004967]
[1748239279968,0.69661617,109460.0,109450.0,0.0004967]
[1748239280177,0.71115702,109460.0,109450.0,0.0004967]
[1748239280386,1.10026587,109460.0,109450.0,0.0004967]
[1748239280592,1.10666862,109460.0,109450.0,0.0004967]
[1748239280832,1.02823977,109460.0,109450.0,0.0004967]
[1748239281043,1.03997326,109460.0,109450.0,0.0004967]
[1748239281453,1.03697326,109460.0,109450.0,0.0004967]
[1748239281662,1.03797326,109460.0,109450.0,0.0004967]
[1748239281879,1.04297326,109460.0,109450.0,0.0004967]
[1748239282071,1.04197326,109460.0,109450.0,0.0004967]
[1748239282438,1.04697326,109460.0,109450.0,0.0004967]
[1748239283318,1.04648906,109460.0,109450.0,0.0004967]
[1748239283696,1.10953426,109460.0,109450.0,0.0004967]
[1748239283938,1.11838702,109460.0,109450.0,0.0004967]
[1748239284144,1.11265353,109460.0,109450.0,0.0004967]
[1748239284351,1.10625078,109460.0,109450.0,0.0004967]
[1748239284558,1.10125078,109460.0,109450.0,0.0004967]
[1748239284769,0.55449296,109460.0,109450.0,0.0004967]
[1748239284978,1.08721586,109460.0,109450.0,0.0004967]
[1748239285486,1.10429078,109460.0,109450.0,0.0004967]
[1748239285707,1.04124558,109460.0,109450.0,0.0004967]
[1748239286123,1.02417066,109460.0,109450.0,0.0004967]
[1748239286530,0.47441284,109460.0,109450.0,0.0004967]
[1748239286742,1.02417066,109460.0,109450.0,0.0004967]
[1748239286982,1.02421066,109460.0,109450.0,0.0004967]
[1748239287188,0.47445284,109460.0,109450.0,0.0004967]
[1748239287421,1.02421066,109460.0,109450.0,0.0004967]
[1748239288019,0.29866428,109460.0,109400.0,0.17728284]
[1748239288262,0.00228597,109450.0,109410.0,0.358683]
[1748239288473,0.08954556,109440.0,109400.0,0.27717606]
[1748239289109,0.08954556,109440.0,109410.0,0.687222]
[1748239289232,0.08954556,109440.0,109400.0,0.28117606]
[1748239289433,0.08954556,109440.0,109410.0,0.173019]
[1748239289637,0.08954556,109440.0,109410.0,0.17530362]
[1748239289837,0.08954556,109440.0,109410.0,0.00228462]
[1748239291136,0.08954556,109440.0,109430.0,0.0156]
[1748239291558,0.08954556,109440.0,109430.0,0.0321]
[1748239291764,0.08954556,109440.0,109430.0,0.0156]
[1748239292842,0.09054556,109440.0,109430.0,0.0156]
[1748239293393,0.09154556,109440.0,109430.0,0.0156]
[1748239295563,0.08554556,109440.0,109430.0,0.0156]
[1748239295774,0.08554556,109440.0,109420.0,0.0165]
[1748239295775,0.08554556,109440.0,109420.0,0.0318]
[1748239295979,0.00228597,109430.0,109420.0,0.0318]
[1748239296973,0.00228597,109430.0,109420.0,0.0328]
[1748239297657,0.00228597,109430.0,109420.0,0.0338]
[1748239297832,0.00228597,109430.0,109420.0,0.0328]
[1748239298257,0.00228597,109430.0,109420.0,0.0338]
[1748239298455,0.00228597,109430.0,109420.0,0.0173]
[1748239298987,0.00228597,109430.0,109420.0,0.0324]
[1748239302175,0.09183153,109430.0,109420.0,0.002]
[1748239302389,0.12373153,109430.0,109420.0,0.002]
[1748239303431,0.11773153,109430.0,109420.0,0.002]
[1748239307461,0.10173153,109430.0,109420.0,0.002]
[1748239309942,0.11683153,109430.0,109420.0,0.002]
[1748239310625,0.10173153,109430.0,109420.0,0.002]
[1748239311185,0.09573153,109430.0,109420.0,0.002]
[1748239312731,0.11213153,109430.0,109420.0,0.002]
[1748239313407,0.07983153,109430.0,109420.0,0.002]
[1748239316623,0.0152,109440.0,109420.0,0.0174]
[1748239316839,0.10474556,109440.0,109420.0,0.0328]
[1748239317064,0.08954556,109440.0,109430.0,0.0154]
[1748239317941,0.08954556,109440.0,109420.0,0.0174]
[1748239318155,0.08954556,109440.0,109420.0,0.0329]
[1748239318370,0.08954556,109440.0,109420.0,0.0319]
[1748239318566,0.09154556,109440.0,109420.0,0.0319]
[1748239318755,0.08554556,109440.0,109420.0,0.0319]
[1748239319124,0.08554556,109440.0,109430.0,0.0165]
[1748239319329,0.002,109440.0,109430.0,0.0165]
[1748239319741,0.001,109440.0,109430.0,0.0165]
[1748239319988,0.20328,109450.0,109430.0,0.0165]
[1748239320212,0.29282556,109450.0,109430.0,0.0165]
[1748239320694,0.001,109440.0,109430.0,0.0165]
[1748239322933,0.002,109440.0,109430.0,0.0165]
[1748239326603,0.11794556,109450.0,109430.0,0.0165]
[1748239328232,0.11894556,109450.0,109430.0,0.0165]
[1748239333050,0.11894556,109450.0,109420.0,0.0323]
[1748239333892,0.11794556,109450.0,109420.0,0.0323]
[1748239334092,0.11694556,109450.0,109420.0,0.0323]
[1748239334304,0.11094556,109450.0,109420.0,0.0323]
[1748239334440,0.11094556,109450.0,109420.0,0.0343]
[1748239337701,0.27850556,109450.0,109420.0,0.0343]
[1748239338532,0.015,109440.0,109420.0,0.0343]
[1748239338674,0.0302,109440.0,109420.0,0.0343]
[1748239338903,0.12094556,109440.0,109420.0,0.002]
[1748239339316,0.12094556,109440.0,109420.0,0.001]
[1748239339860,0.12094556,109440.0,109420.0,0.002]
[1748239340092,0.66980338,109430.0,109420.0,0.002]
[1748239340260,0.75746703,109430.0,109420.0,0.001]
[1748239340472,0.75746703,109430.0,109420.0,0.002]
[1748239341123,0.75746703,109430.0,109420.0,0.001]
[1748239341328,0.0305,109410.0,109380.0,0.0329]
[1748239341529,0.28760556,109410.0,109380.0,0.0329]
[1748239341691,0.28660556,109410.0,109380.0,0.0329]
[1748239341898,0.28060556,109410.0,109380.0,0.0329]
[1748239342332,0.08954556,109400.0,109380.0,0.05113436]
[1748239342683,0.08854556,109400.0,109380.0,0.05118405]
[1748239343574,0.08854556,109400.0,109380.0,0.05518405]
[1748239344267,0.18316,109410.0,109390.0,0.031]
[1748239344480,0.08954556,109400.0,109380.0,0.05328405]
[1748239345760,0.08954556,109400.0,109380.0,0.05728405]
[1748239349722,0.08354556,109400.0,109380.0,0.05728405]
[1748239357461,0.07754556,109400.0,109380.0,0.05728405]
[1748239365224,0.07154556,109400.0,109380.0,0.05728405]
[1748239365454,0.0322,109410.0,109380.0,0.04128405]
[1748239365677,0.1047228,109430.0,109400.0,0.0313]
[1748239365893,0.35862836,109430.0,109410.0,0.0152]
[1748239366170,0.35862836,109430.0,109410.0,0.0313]
[1748239366171,0.47298836,109430.0,109410.0,0.0313]
[1748239366366,0.16266836,109430.0,109420.0,0.0152]
[1748239366597,0.16266836,109430.0,109410.0,0.0161]
[1748239366797,0.16266836,109430.0,109410.0,0.0313]
[1748239367025,0.16266836,109430.0,109420.0,0.0152]
[1748239367224,0.08954556,109430.0,109420.0,0.0152]
[1748239367429,1.03966,109440.0,109420.0,0.0152]
[1748239367631,1.42402556,109440.0,109420.0,0.03084969]
[1748239367864,0.59836556,109440.0,109420.0,0.03084969]
[1748239368066,0.61386556,109440.0,109420.0,0.03084969]
[1748239368499,0.002,109430.0,109420.0,0.03084969]
[1748239368703,0.004,109430.0,109420.0,0.03084969]
[1748239368881,0.002,109430.0,109420.0,0.03084969]
[1748239369039,0.59836556,109440.0,109420.0,0.03084969]
[1748239369251,0.60036556,109440.0,109420.0,0.03084969]
[1748239369788,0.58426556,109440.0,109420.0,0.03084969]
[1748239370438,0.58226556,109440.0,109420.0,0.03084969]
[1748239370646,0.41790556,109440.0,109420.0,0.03084969]
[1748239370824,0.58222556,109440.0,109430.0,0.0157]
[1748239371894,0.58422556,109440.0,109430.0,0.0157]
[1748239372097,0.58322556,109440.0,109430.0,0.0157]
[1748239372271,0.32836,109440.0,109430.0,0.0157]
[1748239372474,0.33036,109440.0,109430.0,0.0157]
[1748239372673,0.33236,109440.0,109430.0,0.0157]
[1748239372897,0.32624,109450.0,109430.0,0.0307]
[1748239373104,0.39978556,109450.0,109430.0,0.0307]
[1748239374674,0.40078556,109450.0,109430.0,0.0307]
[1748239375085,0.40178556,109450.0,109430.0,0.0307]
[1748239377579,0.41678556,109450.0,109430.0,0.0307]
[1748239377791,0.43288556,109450.0,109430.0,0.0157]
[1748239380620,0.42688556,109450.0,109430.0,0.0157]
[1748239382309,0.42688556,109450.0,109420.0,0.03164969]
[1748239383295,0.42688556,109450.0,109430.0,0.0153]
[1748239384575,0.42588556,109450.0,109430.0,0.0153]
[1748239384862,0.42488556,109450.0,109430.0,0.0153]
[1748239385876,0.42588556,109450.0,109430.0,0.0153]
[1748239386031,0.42688556,109450.0,109430.0,0.0153]
[1748239386432,0.41078556,109450.0,109430.0,0.0319]
[1748239386655,0.24986556,109450.0,109430.0,0.0319]
[1748239386862,0.39578556,109450.0,109430.0,0.0319]
[1748239388351,0.40588556,109450.0,109430.0,0.0319]
[1748239392252,0.40588556,109450.0,109390.0,0.47354345]
[1748239392399,0.42168556,109450.0,109400.0,3.47538656]
[1748239392595,0.42168556,109450.0,109410.0,0.300513]
[1748239392823,0.42168556,109450.0,109420.0,0.00228454]
[1748239393233,0.42068556,109450.0,109420.0,0.00228454]
[1748239394295,0.41968556,109450.0,109420.0,0.00228454]
[1748239394486,0.00228456,109440.0,109420.0,0.00228454]
[1748239395194,0.41968556,109450.0,109420.0,0.00228454]
[1748239395437,0.41968556,109450.0,109420.0,0.03428454]
[1748239396046,0.12144556,109450.0,109420.0,0.03428454]
[1748239396260,0.25106556,109450.0,109430.0,0.0315]
[1748239396581,0.17642,109460.0,109430.0,0.016]
[1748239396582,0.0305,109460.0,109430.0,0.016]
[1748239396809,0.25335012,109460.0,109440.0,0.0315]
[1748239396989,0.2909397,109470.0,109450.0,0.0155]
[1748239397231,0.37174444,109470.0,109450.0,0.0155]
[1748239397432,0.37224117,109470.0,109450.0,0.0155]
[1748239397661,0.35518509,109470.0,109450.0,0.0155]
[1748239398833,0.35518509,109470.0,109450.0,0.0185]
[1748239399230,0.35518509,109470.0,109450.0,0.0215]
[1748239399445,0.28206229,109470.0,109450.0,0.0215]
[1748239399647,0.12054229,109470.0,109450.0,0.0215]
[1748239400194,0.12282685,109470.0,109450.0,0.0215]
[1748239401563,0.10752685,109470.0,109450.0,0.0375]
[1748239401738,0.12382685,109470.0,109450.0,0.0215]
[1748239402184,0.12382685,109470.0,109450.0,0.006]
[1748239402992,0.12382685,109470.0,109450.0,0.0213]
[1748239403736,0.11782685,109470.0,109450.0,0.0213]
[1748239404802,0.11782685,109470.0,109450.0,0.037]
[1748239405657,0.11782685,109470.0,109450.0,0.006]
[1748239407845,0.11782685,109470.0,109450.0,0.021]
[1748239408701,0.11782685,109470.0,109450.0,0.006]
[1748239411401,0.11182685,109470.0,109450.0,0.006]
[1748239420178,0.10582685,109470.0,109450.0,0.006]
[1748239423208,0.12122685,109470.0,109450.0,0.006]
[1748239423964,0.12122685,109470.0,109450.0,0.0226]
[1748239425437,0.12122685,109470.0,109450.0,0.0386]
[1748239427839,0.10582685,109470.0,109450.0,0.0386]
[1748239428098,0.09982685,109470.0,109450.0,0.0386]
[1748239430798,0.09982685,109470.0,109450.0,0.1386]
[1748239435692,0.09382685,109470.0,109450.0,0.1386]
[1748239437593,0.10902685,109470.0,109450.0,0.1226]
[1748239438418,0.10902685,109470.0,109450.0,0.1376]
[1748239438888,0.09382685,109470.0,109450.0,0.1376]
[1748239439270,0.09382685,109470.0,109450.0,0.2376]
[1748239440413,0.00049673,109470.0,109460.0,0.0156]
[1748239440621,0.00049673,109470.0,109450.0,0.2366]
[1748239441028,0.01589673,109470.0,109450.0,0.2366]
[1748239441232,0.01589673,109470.0,109450.0,0.2336]
[1748239441615,0.01589673,109470.0,109460.0,0.001]
[1748239441968,0.01589673,109470.0,109450.0,0.2336]
[1748239442994,0.01589673,109470.0,109450.0,0.2356]
[1748239443199,0.01589673,109470.0,109450.0,0.2326]
[1748239443421,0.00989673,109470.0,109450.0,0.2326]
[1748239443606,0.00989673,109470.0,109460.0,0.002]
[1748239443607,0.01218129,109470.0,109460.0,0.002]
[1748239443886,0.01218129,109470.0,109450.0,0.2326]
[1748239444280,0.01218129,109470.0,109450.0,0.2356]
[1748239444594,0.01218129,109470.0,109450.0,0.2336]
[1748239444874,0.01218129,109470.0,109460.0,0.001]
[1748239445383,0.01218129,109470.0,109450.0,0.2336]
[1748239445524,0.01218129,109470.0,109450.0,0.2306]
[1748239445772,0.01218129,109470.0,109460.0,0.002]
[1748239446034,0.00228456,109470.0,109460.0,0.002]
[1748239446495,0.00228456,109470.0,109460.0,0.003]
[1748239450520,0.00228456,109470.0,109460.0,0.03140724]
[1748239451092,0.02668456,109480.0,109460.0,0.03140724]
[1748239451374,0.11308847,109480.0,109460.0,0.06400724]
[1748239451874,0.00854291,109480.0,109460.0,0.06400724]
[1748239452085,0.00854291,109480.0,109460.0,0.06300724]
[1748239452327,0.00854291,109480.0,109460.0,0.06400724]
[1748239452546,0.00854291,109480.0,109460.0,0.06200724]
[1748239452759,0.00854291,109480.0,109460.0,0.06400724]
[1748239452961,0.31029738,109490.0,109460.0,0.06400724]
[1748239453166,0.39997908,109490.0,109460.0,0.06400724]
[1748239453387,0.32685628,109490.0,109460.0,0.06400724]
[1748239453609,0.32685628,109490.0,109470.0,0.0319]
[1748239453858,0.33539549,109490.0,109470.0,0.0319]
[1748239454297,0.30318721,109490.0,109470.0,0.0319]
[1748239454924,0.30418721,109490.0,109470.0,0.0319]
[1748239456066,0.32068721,109490.0,109470.0,0.0158]
[1748239456268,0.32068721,109490.0,109460.0,0.39980724]
[1748239456477,0.32068721,109490.0,109460.0,0.38350724]
[1748239456681,0.12902721,109490.0,109470.0,0.032]
[1748239456880,0.12802721,109490.0,109470.0,0.032]
[1748239457352,0.12802721,109490.0,109470.0,0.035]
[1748239457539,0.12802721,109490.0,109470.0,0.033]
[1748239457934,0.119488,109490.0,109470.0,0.033]
[1748239458860,0.113488,109490.0,109470.0,0.033]
[1748239462530,0.113488,109490.0,109460.0,0.14588]
[1748239462728,0.144988,109490.0,109460.0,0.14588]
[1748239463689,0.144988,109490.0,109460.0,0.14788]
[1748239464270,0.144988,109490.0,109460.0,0.002]
[1748239464425,0.144988,109490.0,109460.0,0.14984]
[1748239464646,0.144988,109490.0,109460.0,0.17785963]
[1748239464991,0.144988,109490.0,109460.0,0.18014326]
[1748239465548,0.144988,109490.0,109460.0,0.40570326]
[1748239465731,0.144988,109490.0,109460.0,0.54925963]
[1748239466715,0.138988,109490.0,109460.0,0.54925963]
[1748239469413,0.138988,109490.0,109470.0,0.016]
[1748239469615,0.138988,109490.0,109460.0,0.54935963]
[1748239470466,0.138988,109490.0,109460.0,0.54735963]
[1748239470600,0.138988,109490.0,109470.0,0.001]
[1748239471702,0.138988,109490.0,109460.0,0.54735963]
[1748239471903,0.138988,109490.0,109460.0,0.54535963]
[1748239472352,0.138988,109490.0,109470.0,0.001]
[1748239472548,0.122788,109490.0,109470.0,0.001]
[1748239472777,0.0157,109480.0,109470.0,0.001]
[1748239473545,0.0157,109480.0,109460.0,0.20735963]
[1748239473968,0.0157,109480.0,109470.0,0.001]
[1748239474251,0.0097,109480.0,109470.0,0.002]
[1748239475025,0.0097,109480.0,109470.0,0.001]
[1748239475992,0.0097,109480.0,109470.0,0.002]
[1748239478684,0.138688,109490.0,109470.0,0.002]
[1748239479515,0.138688,109490.0,109470.0,0.001]
[1748239480096,0.138688,109490.0,109470.0,0.002]
[1748239481567,0.14722699,109490.0,109470.0,0.002]
[1748239482061,0.14122699,109490.0,109470.0,0.002]
[1748239486762,0.14122699,109490.0,109460.0,0.11802893]
[1748239486951,0.14122699,109490.0,109450.0,0.34584]
[1748239486952,0.0153,109480.0,109450.0,0.34584]
[1748239487157,0.0304,109480.0,109450.0,0.43538556]
[1748239489108,0.0304,109480.0,109460.0,0.002]
[1748239489481,0.0304,109480.0,109450.0,0.29354556]
[1748239489713,0.0244,109480.0,109450.0,0.47078556]
[1748239489907,0.0244,109480.0,109460.0,0.0157]
[1748239490444,0.0244,109480.0,109460.0,0.0177]
[1748239492027,0.0244,109480.0,109460.0,0.0197]
[1748239492687,0.0244,109480.0,109460.0,0.02198363]
[1748239492889,0.0244,109480.0,109460.0,0.03848363]
[1748239493310,0.0151,109480.0,109460.0,0.12802919]
[1748239493463,0.04354244,109490.0,109460.0,0.12802919]
[1748239493678,0.04354244,109490.0,109470.0,0.0151]
[1748239496463,0.04354244,109490.0,109460.0,0.12124556]
[1748239496674,0.04354244,109490.0,109470.0,0.001]
[1748239497455,0.03754244,109490.0,109460.0,0.12124556]
[1748239497654,0.03754244,109490.0,109460.0,0.12324556]
[1748239498767,0.03754244,109490.0,109460.0,0.12524556]
[1748239499529,0.03754244,109490.0,109460.0,0.12324556]
[1748239499735,0.03754244,109490.0,109470.0,0.001]
[1748239500179,0.03754244,109490.0,109460.0,0.12324556]
[1748239500382,0.03737801,109490.0,109460.0,0.12524556]
[1748239500819,0.03737801,109490.0,109460.0,0.12324556]
[1748239500997,0.03737801,109490.0,109470.0,0.001]
[1748239501224,0.03737801,109490.0,109460.0,0.12124556]
[1748239501955,0.0157,109480.0,109460.0,0.12124556]
[1748239502698,0.0157,109480.0,109460.0,0.12324556]
[1748239502925,0.0157,109480.0,109460.0,0.12124556]
[1748239503099,0.0157,109480.0,109460.0,0.12324556]
[1748239503298,0.0157,109480.0,109460.0,0.12524556]
[1748239503503,0.03677801,109490.0,109460.0,0.12524556]
[1748239504451,0.03677801,109490.0,109460.0,0.12324556]
[1748239504678,0.03677801,109490.0,109460.0,0.12124556]
[1748239504885,0.03677801,109490.0,109460.0,0.12324556]
[1748239505282,0.03077801,109490.0,109460.0,0.12124556]
[1748239505591,0.03077801,109490.0,109460.0,0.12324556]
[1748239506215,0.03077801,109490.0,109460.0,0.12524556]
[1748239506423,0.0165,109480.0,109460.0,0.12524556]
[1748239506624,0.01659068,109480.0,109460.0,0.12524556]
[1748239507013,9.068e-05,109480.0,109460.0,0.12524556]
[1748239507476,9.068e-05,109480.0,109460.0,0.12324556]
[1748239507683,9.068e-05,109480.0,109460.0,0.12124556]
[1748239507886,9.068e-05,109480.0,109460.0,0.12524556]
[1748239508582,0.01559068,109480.0,109460.0,0.12524556]
[1748239508996,9.068e-05,109480.0,109460.0,0.27108556]
[1748239510996,9.068e-05,109480.0,109460.0,0.12524556]
[1748239511203,0.01579068,109480.0,109460.0,0.12524556]
[1748239511410,0.03099068,109480.0,109460.0,0.25458556]
[1748239512072,0.03099068,109480.0,109460.0,0.29158831]
[1748239512942,0.02499068,109480.0,109460.0,0.29158831]
[1748239513347,0.02499068,109480.0,109460.0,0.30818831]
[1748239515476,0.02499068,109480.0,109460.0,0.29158831]
[1748239516616,0.02499068,109480.0,109460.0,0.27638831]
[1748239517550,0.02499068,109480.0,109470.0,0.34]
[1748239518869,0.0309,109470.0,109460.0,0.03900275]
[1748239519085,0.0309,109470.0,109460.0,0.03913889]
[1748239519701,0.0309,109470.0,109460.0,0.00213614]
[1748239519907,0.12044556,109470.0,109460.0,0.00013614]
[1748239520285,0.11944556,109470.0,109460.0,0.00013614]
[1748239520489,0.11344556,109470.0,109460.0,0.00013614]
[1748239520891,0.11344556,109470.0,109460.0,0.00213614]
[1748239521356,0.11344556,109470.0,109460.0,0.00413614]
[1748239522645,0.11344556,109470.0,109460.0,0.04160114]
[1748239522837,0.11344556,109470.0,109460.0,0.00413614]
[1748239524609,0.0239,109470.0,109460.0,0.00413614]
[1748239528301,0.0179,109470.0,109460.0,0.00413614]
[1748239531864,0.0151,109470.0,109460.0,0.00413614]
[1748239532065,0.0304,109470.0,109460.0,0.04052156]
[1748239534178,0.0151,109470.0,109460.0,0.04052156]
[1748239535356,0.0313,109470.0,109460.0,0.04052156]
[1748239535977,0.0253,109470.0,109460.0,0.04052156]
[1748239536179,0.0091,109470.0,109460.0,0.04052156]
[1748239536683,0.0253,109470.0,109460.0,0.04052156]
[1748239538534,0.0162,109480.0,109460.0,0.04052156]
[1748239538733,0.10574556,109480.0,109460.0,0.04052156]
[1748239539024,0.12194556,109480.0,109460.0,0.04052156]
[1748239539811,0.0162,109470.0,109460.0,0.04052156]
[1748239540041,0.0162,109470.0,109460.0,0.03852156]
[1748239540969,0.0162,109470.0,109460.0,0.03652156]
[1748239541141,0.0162,109470.0,109460.0,0.03852156]
[1748239541349,0.0325,109470.0,109460.0,0.04052156]
[1748239541552,0.0162,109470.0,109460.0,0.04052156]
[1748239541791,0.0162,109470.0,109460.0,0.03852156]
[1748239542034,0.0162,109470.0,109460.0,0.04052156]
[1748239543752,0.10584556,109480.0,109460.0,0.04052156]
[1748239544529,0.10584556,109480.0,109460.0,0.03652156]
[1748239544822,0.10584556,109480.0,109460.0,0.03852156]
[1748239545025,0.10584556,109480.0,109460.0,0.04052156]
[1748239545637,0.0157,109470.0,109460.0,0.04052156]
[1748239546755,0.0157,109470.0,109460.0,0.03652156]
[1748239546954,0.0157,109470.0,109460.0,0.04052156]
[1748239547564,0.12114556,109480.0,109460.0,0.04052156]
[1748239548366,0.12114556,109480.0,109460.0,0.03852156]
[1748239548736,0.12968412,109480.0,109460.0,0.03852156]
[1748239548935,0.12968412,109480.0,109460.0,0.07092156]
[1748239549357,0.12968412,109480.0,109460.0,0.06892156]
[1748239549654,0.12968412,109480.0,109460.0,0.07292156]
[1748239549859,0.12968412,109480.0,109460.0,0.05682156]
[1748239550612,0.12968412,109480.0,109460.0,0.04052156]
[1748239551485,0.12368412,109480.0,109460.0,0.04052156]
[1748239559138,0.11768412,109480.0,109460.0,0.04052156]
[1748239566256,0.11768412,109480.0,109460.0,0.05672156]
[1748239566975,0.11168412,109480.0,109460.0,0.05672156]
[1748239567776,0.11168412,109480.0,109460.0,0.07202156]
[1748239570019,0.04013856,109480.0,109460.0,0.03563614]
[1748239570140,0.00853856,109480.0,109460.0,0.03563614]
[1748239571500,0.36368828,109490.0,109460.0,0.03563614]
[1748239571698,0.45323384,109490.0,109460.0,0.03563614]
[1748239572450,0.45323384,109490.0,109460.0,0.37363614]
[1748239572647,0.42102556,109490.0,109460.0,0.37163614]
[1748239572945,0.42956616,109490.0,109460.0,0.37563614]
[1748239573160,0.9791204,109490.0,109460.0,0.37563614]
[1748239573409,0.0318,109480.0,109460.0,0.34413614]
[1748239574194,0.12134556,109480.0,109460.0,0.34413614]
[1748239574422,0.0318,109470.0,109460.0,0.34413614]
[1748239574622,0.0258,109470.0,109460.0,0.34213614]
[1748239575057,0.0258,109470.0,109460.0,0.34413614]
[1748239575440,0.0258,109470.0,109460.0,0.34213614]
[1748239575975,0.0258,109470.0,109460.0,0.34013614]
[1748239576300,0.0258,109470.0,109460.0,0.34213614]
[1748239576653,0.0258,109470.0,109460.0,0.34013614]
[1748239576913,0.0258,109470.0,109460.0,0.09417952]
[1748239577589,0.0258,109470.0,109450.0,0.2159]
[1748239577771,0.0258,109470.0,109450.0,0.21639673]
[1748239579168,0.0258,109470.0,109450.0,0.0360291]
[1748239579392,0.0258,109470.0,109450.0,0.0380291]
[1748239579976,0.0258,109470.0,109450.0,0.3780291]
[1748239582343,0.0198,109470.0,109450.0,0.3780291]
[1748239582550,0.016,109470.0,109450.0,0.3780291]
[1748239586588,0.016,109470.0,109450.0,0.0380291]
[1748239589887,0.01,109470.0,109450.0,0.0380291]
[1748239590090,0.01,109470.0,109450.0,0.0531291]
[1748239593799,0.12054556,109480.0,109450.0,0.0531291]
[1748239593996,0.08954556,109480.0,109460.0,0.032]
[1748239594783,0.3308,109490.0,109460.0,0.032]
[1748239595003,0.42034556,109490.0,109460.0,0.032]
[1748239595178,0.42888651,109490.0,109460.0,0.032]
[1748239595573,0.67784075,109490.0,109470.0,0.015]
[1748239595773,0.42888651,109490.0,109470.0,0.015]
[1748239597041,0.42988651,109490.0,109470.0,0.015]
[1748239598184,0.43088651,109490.0,109470.0,0.015]
[1748239598791,0.42388651,109490.0,109470.0,0.015]
[1748239598990,0.41478651,109490.0,109470.0,0.015]
[1748239599339,0.41378651,109490.0,109470.0,0.015]
[1748239602127,0.42908651,109490.0,109470.0,0.015]
[1748239602291,0.41378651,109490.0,109470.0,0.015]
[1748239602782,0.11318651,109490.0,109470.0,0.015]
[1748239602963,0.02364095,109490.0,109470.0,0.0302]
[1748239603214,0.00854095,109490.0,109480.0,0.0165]
[1748239603441,0.06499459,109500.0,109480.0,0.0317]
[1748239603645,0.13954015,109500.0,109480.0,0.0317]
[1748239604212,0.15484015,109500.0,109480.0,0.0317]
[1748239604412,0.001,109490.0,109480.0,0.0317]
[1748239605010,0.70539439,109500.0,109480.0,0.0317]
[1748239605635,0.7139269,109500.0,109480.0,0.0317]
[1748239606291,0.7129269,109500.0,109480.0,0.0317]
[1748239606430,0.7139269,109500.0,109480.0,0.0317]
[1748239606638,0.001,109490.0,109480.0,0.0317]
[1748239606836,0.7079269,109500.0,109480.0,0.0317]
[1748239607259,0.14407266,109500.0,109480.0,0.0317]
[1748239607461,0.0535271,109500.0,109490.0,0.015]
[1748239607868,0.04499459,109500.0,109490.0,0.015]
[1748239608069,0.04399459,109500.0,109490.0,0.015]
[1748239608715,0.04404425,109500.0,109490.0,0.015]
[1748239609333,0.04404425,109500.0,109490.0,0.0308]
[1748239609496,0.04504425,109500.0,109490.0,0.0308]
[1748239609726,0.04804425,109500.0,109490.0,0.0308]
[1748239609928,0.04704425,109500.0,109490.0,0.0308]
[1748239610564,0.04404425,109500.0,109490.0,0.0308]
[1748239610911,0.04404425,109500.0,109490.0,0.0338]
[1748239611519,0.04404425,109500.0,109490.0,0.0368]
[1748239612561,0.07554425,109500.0,109490.0,0.006]
[1748239612722,0.16508981,109500.0,109490.0,0.006]
[1748239613470,0.16508981,109500.0,109490.0,0.003]
[1748239613659,0.13358981,109500.0,109470.0,0.0163]
[1748239613866,0.11904556,109490.0,109470.0,0.0163]
[1748239614066,0.08954556,109490.0,109470.0,0.0322]
[1748239614275,0.08354556,109490.0,109480.0,0.0163]
[1748239615127,0.08354556,109490.0,109470.0,0.0342]
[1748239615508,0.08354556,109490.0,109480.0,0.0163]
[1748239615706,0.05964425,109500.0,109480.0,0.0163]
[1748239615914,0.14918981,109500.0,109480.0,0.0163]
[1748239616682,0.001,109490.0,109480.0,0.0163]
[1748239617641,0.14918981,109500.0,109480.0,0.0163]
[1748239617871,0.001,109490.0,109480.0,0.0163]
[1748239619326,0.001,109490.0,109480.0,0.0326]
[1748239621964,0.03904425,109500.0,109490.0,0.0164]
[1748239623635,0.04004425,109500.0,109490.0,0.0164]
[1748239629081,0.03504425,109500.0,109490.0,0.0316]
[1748239630835,0.03504425,109500.0,109490.0,0.0164]
[1748239631238,0.03504425,109500.0,109490.0,0.0316]
[1748239634880,0.03504425,109500.0,109490.0,0.0164]
[1748239635778,0.05074425,109500.0,109480.0,0.0325]
[1748239635924,0.05074425,109500.0,109480.0,0.0159]
[1748239636134,0.04474425,109500.0,109480.0,0.0159]
[1748239636838,0.04374425,109500.0,109480.0,0.0159]
[1748239638171,0.04374425,109500.0,109480.0,0.0179]
[1748239638972,0.04374425,109500.0,109480.0,0.0342]
[1748239639379,0.02804425,109500.0,109490.0,0.0156]
[1748239639575,0.02804425,109500.0,109490.0,0.0313]
[1748239640532,0.02804425,109500.0,109490.0,0.0156]
[1748239641347,0.02804425,109500.0,109490.0,0.0307]